{"text_format":"3","workbook":"xlsx","n_sheets":4,"sheets":["Sažetak mjesečnog proračuna","Prihodi","Troškovi za zaposlenike","Operativni troškovi"],"not_rendered":{"charts":1,"defined_names":14},"read":"whole","date_system":"1900"}

{"sheet":"Sažetak mjesečnog proračuna","index":0,"n_rows":17,"n_cols":5,"rows_kept":17,"merged":[[1,1,1,3],[1,4,1,5]]}
[null,"NAZIV TVRTKE"]
[null,"MJESEČNI PRORAČUN",null,null,"Datum"]
[]
[null,"UKUPNI IZNOSI PRORAČUNA","PROCIJENJENO","STVARNO","RAZLIKA"]
[null,"Prihodi",{"$f":"Prihod[[#Totals],[PROCIJENJENO]]","v":{"v":63300,"d":"63,300.00"}},{"$f":"Prihod[[#Totals],[STVARNO]]","v":{"v":57450,"d":"57,450.00"}},{"$f":"Ukupni_zbrojevi[[#This Row],[STVARNO]]-Ukupni_zbrojevi[[#This Row],[PROCIJENJENO]]","v":{"v":-5850,"d":"-5,850.00 "}}]
[null,"Troškovi",{"$f":"OperativniTroškovi[[#Totals],[PROCIJENJENO]]+TroškoviZaposlenici[[#Totals],[PROCIJENJENO]]","v":{"v":54500,"d":"54,500.00"}},{"$f":"OperativniTroškovi[[#Totals],[STVARNO]]+TroškoviZaposlenici[[#Totals],[STVARNO]]","v":{"v":49630,"d":"49,630.00"}},{"$f":"Ukupni_zbrojevi[[#This Row],[STVARNO]]-Ukupni_zbrojevi[[#This Row],[PROCIJENJENO]]","v":{"v":-4870,"d":"-4,870.00 "}}]
[null,"Stanje (prihodi minus troškovi)",{"$f":"C5-C6","v":{"v":8800,"d":"8,800.00"}},{"$f":"D5-D6","v":{"v":7820,"d":"7,820.00"}},{"$f":"SUM(Ukupni_zbrojevi[[#Totals],[STVARNO]]-Ukupni_zbrojevi[[#Totals],[PROCIJENJENO]])","v":{"v":-980,"d":"-980.00 "}}]
[]
[]
[null,"KOJI SU MOJIH PET NAJVIŠIH OPERATIVNIH TROŠKOVA?"]
[null,"TROŠAK","IZNOS","% TROŠKOVA","SMANJENJE OD 15%"]
[null,{"$f":"INDEX(OperativniTroškovi[],MATCH(Pet_najvećih_troškova[[#This Row],[IZNOS]],OperativniTroškovi[PET NAJVEĆIH IZNOSA],0),1)","v":"Održavanje i popravci"},{"$f":"LARGE(OperativniTroškovi[PET NAJVEĆIH IZNOSA],1)","v":{"v":4600.000014,"d":"4,600.00"}},{"$f":"Pet_najvećih_troškova[[#This Row],[IZNOS]]/$D$6","v":{"v":0.09268587576062866,"d":"9.3%"}},{"$f":"Pet_najvećih_troškova[[#This Row],[IZNOS]]*0.15","v":{"v":690.0000021,"d":"690.00"}}]
[null,{"$f":"INDEX(OperativniTroškovi[],MATCH(Pet_najvećih_troškova[[#This Row],[IZNOS]],OperativniTroškovi[PET NAJVEĆIH IZNOSA],0),1)","v":"Potrošni materijal"},{"$f":"LARGE(OperativniTroškovi[PET NAJVEĆIH IZNOSA],2)","v":{"v":4500.00002,"d":"4,500.00"}},{"$f":"Pet_najvećih_troškova[[#This Row],[IZNOS]]/$D$6","v":{"v":0.09067096554503326,"d":"9.1%"}},{"$f":"Pet_najvećih_troškova[[#This Row],[IZNOS]]*0.15","v":{"v":675.000003,"d":"675.00"}}]
[null,{"$f":"INDEX(OperativniTroškovi[],MATCH(Pet_najvećih_troškova[[#This Row],[IZNOS]],OperativniTroškovi[PET NAJVEĆIH IZNOSA],0),1)","v":"Najam ili kredit"},{"$f":"LARGE(OperativniTroškovi[PET NAJVEĆIH IZNOSA],3)","v":{"v":4500.000017,"d":"4,500.00"}},{"$f":"Pet_najvećih_troškova[[#This Row],[IZNOS]]/$D$6","v":{"v":0.09067096548458595,"d":"9.1%"}},{"$f":"Pet_najvećih_troškova[[#This Row],[IZNOS]]*0.15","v":{"v":675.00000255,"d":"675.00"}}]
[null,{"$f":"INDEX(OperativniTroškovi[],MATCH(Pet_najvećih_troškova[[#This Row],[IZNOS]],OperativniTroškovi[PET NAJVEĆIH IZNOSA],0),1)","v":"Porezi"},{"$f":"LARGE(OperativniTroškovi[PET NAJVEĆIH IZNOSA],4)","v":{"v":3200.000021,"d":"3,200.00"}},{"$f":"Pet_najvećih_troškova[[#This Row],[IZNOS]]/$D$6","v":{"v":0.06447713119081201,"d":"6.4%"}},{"$f":"Pet_najvećih_troškova[[#This Row],[IZNOS]]*0.15","v":{"v":480.00000314999994,"d":"480.00"}}]
[null,{"$f":"INDEX(OperativniTroškovi[],MATCH(Pet_najvećih_troškova[[#This Row],[IZNOS]],OperativniTroškovi[PET NAJVEĆIH IZNOSA],0),1)","v":"Oglašavanje"},{"$f":"LARGE(OperativniTroškovi[PET NAJVEĆIH IZNOSA],5)","v":{"v":2500.000005,"d":"2,500.00"}},{"$f":"Pet_najvećih_troškova[[#This Row],[IZNOS]]/$D$6","v":{"v":0.05037275851299617,"d":"5.0%"}},{"$f":"Pet_najvećih_troškova[[#This Row],[IZNOS]]*0.15","v":{"v":375.00000074999997,"d":"375.00"}}]
[null,"Ukupno",{"$f":"SUBTOTAL(109,Pet_najvećih_troškova[IZNOS])","v":{"v":19300.000077000004,"d":"19,300.00"}},{"$f":"SUBTOTAL(109,Pet_najvećih_troškova[% TROŠKOVA])","v":{"v":0.388877696494056,"d":"38.9%"}},{"$f":"SUBTOTAL(109,Pet_najvećih_troškova[SMANJENJE OD 15%])","v":{"v":2895.0000115499997,"d":"2,895.00"}}]

{"sheet":"Prihodi","index":1,"n_rows":8,"n_cols":6,"rows_kept":8,"merged":[[1,1,1,3]]}
[null,{"$f":"NAZIV_TVRTKE","v":"NAZIV TVRTKE"}]
[null,{"$f":"PRORAČUN_naslov","v":"MJESEČNI PRORAČUN"}]
[]
[null,"PRIHODI","PROCIJENJENO","STVARNO","PET NAJVEĆIH IZNOSA","RAZLIKA"]
[null,"Neto prodaja",{"v":60000,"d":"60,000.00"},{"v":54000,"d":"54,000.00"},{"$f":"Prihod[[#This Row],[STVARNO]]+(10^-6)*ROW(Prihod[[#This Row],[STVARNO]])","v":{"v":54000.000005,"d":"54,000.00"}},{"$f":"Prihod[[#This Row],[STVARNO]]-Prihod[[#This Row],[PROCIJENJENO]]","v":{"v":-6000,"d":"-6,000.00 "}}]
[null,"Prihodi od kamata",{"v":3000,"d":"3,000.00"},{"v":3000,"d":"3,000.00"},{"$f":"Prihod[[#This Row],[STVARNO]]+(10^-6)*ROW(Prihod[[#This Row],[STVARNO]])","v":{"v":3000.000006,"d":"3,000.00"}},{"$f":"Prihod[[#This Row],[STVARNO]]-Prihod[[#This Row],[PROCIJENJENO]]","v":{"v":0,"d":"0.00"}}]
[null,"Prodaja resursa (dobitak/gubitak)",{"v":300,"d":"300.00"},{"v":450,"d":"450.00"},{"$f":"Prihod[[#This Row],[STVARNO]]+(10^-6)*ROW(Prihod[[#This Row],[STVARNO]])","v":{"v":450.000007,"d":"450.00"}},{"$f":"Prihod[[#This Row],[STVARNO]]-Prihod[[#This Row],[PROCIJENJENO]]","v":{"v":150,"d":"150.00"}}]
[null,"Ukupni prihod",{"$f":"SUBTOTAL(109,Prihod[PROCIJENJENO])","v":{"v":63300,"d":"63,300.00"}},{"$f":"SUBTOTAL(109,Prihod[STVARNO])","v":{"v":57450,"d":"57,450.00"}},null,{"$f":"SUBTOTAL(109,Prihod[RAZLIKA])","v":{"v":-5850,"d":"-5,850.00 "}}]

{"sheet":"Troškovi za zaposlenike","index":2,"n_rows":8,"n_cols":6,"rows_kept":8,"merged":[[1,1,1,3]]}
[null,{"$f":"NAZIV_TVRTKE","v":"NAZIV TVRTKE"}]
[null,{"$f":"PRORAČUN_naslov","v":"MJESEČNI PRORAČUN"}]
[]
[null,"TROŠKOVI ZA ZAPOSLENIKE","PROCIJENJENO","STVARNO","PET NAJVEĆIH IZNOSA","RAZLIKA"]
[null,"Plaće",{"v":9500,"d":"9,500.00"},{"v":9600,"d":"9,600.00"},{"$f":"TroškoviZaposlenici[[#This Row],[STVARNO]]+(10^-6)*ROW(TroškoviZaposlenici[[#This Row],[STVARNO]])","v":{"v":9600.000005,"d":"9,600.00"}},{"$f":"TroškoviZaposlenici[[#This Row],[PROCIJENJENO]]-TroškoviZaposlenici[[#This Row],[STVARNO]]","v":{"v":-100,"d":"-100.00 "}}]
[null,"Pogodnosti za zaposlenike",{"v":4000,"d":"4,000.00"},{"v":0,"d":"0.00"},{"$f":"TroškoviZaposlenici[[#This Row],[STVARNO]]+(10^-6)*ROW(TroškoviZaposlenici[[#This Row],[STVARNO]])","v":{"v":6e-06,"d":"0.00"}},{"$f":"TroškoviZaposlenici[[#This Row],[PROCIJENJENO]]-TroškoviZaposlenici[[#This Row],[STVARNO]]","v":{"v":4000,"d":"4,000.00"}}]
[null,"Provizija",{"v":5000,"d":"5,000.00"},{"v":4500,"d":"4,500.00"},{"$f":"TroškoviZaposlenici[[#This Row],[STVARNO]]+(10^-6)*ROW(TroškoviZaposlenici[[#This Row],[STVARNO]])","v":{"v":4500.000007,"d":"4,500.00"}},{"$f":"TroškoviZaposlenici[[#This Row],[PROCIJENJENO]]-TroškoviZaposlenici[[#This Row],[STVARNO]]","v":{"v":500,"d":"500.00"}}]
[null,"Ukupni troškovi za zaposlenike",{"$f":"SUBTOTAL(109,TroškoviZaposlenici[PROCIJENJENO])","v":{"v":18500,"d":"18,500.00"}},{"$f":"SUBTOTAL(109,TroškoviZaposlenici[STVARNO])","v":{"v":14100,"d":"14,100.00"}},null,{"$f":"SUBTOTAL(109,TroškoviZaposlenici[RAZLIKA])","v":{"v":4400,"d":"4,400.00"}}]

{"sheet":"Operativni troškovi","index":3,"n_rows":25,"n_cols":6,"rows_kept":25,"merged":[[1,1,1,3]]}
[null,{"$f":"NAZIV_TVRTKE","v":"NAZIV TVRTKE"}]
[null,{"$f":"PRORAČUN_naslov","v":"MJESEČNI PRORAČUN"}]
[]
[null,"OPERATIVNI TROŠKOVI","PROCIJENJENO","STVARNO","PET NAJVEĆIH IZNOSA","RAZLIKA"]
[null,"Oglašavanje",{"v":3000,"d":"3,000.00"},{"v":2500,"d":"2,500.00"},{"$f":"OperativniTroškovi[[#This Row],[STVARNO]]+(10^-6)*ROW(OperativniTroškovi[[#This Row],[STVARNO]])","v":{"v":2500.000005,"d":"2,500.00"}},{"$f":"OperativniTroškovi[[#This Row],[PROCIJENJENO]]-OperativniTroškovi[[#This Row],[STVARNO]]","v":{"v":500,"d":"500.00"}}]
[null,"Sporna potraživanja",{"v":2000,"d":"2,000.00"},{"v":2000,"d":"2,000.00"},{"$f":"OperativniTroškovi[[#This Row],[STVARNO]]+(10^-6)*ROW(OperativniTroškovi[[#This Row],[STVARNO]])","v":{"v":2000.000006,"d":"2,000.00"}},{"$f":"OperativniTroškovi[[#This Row],[PROCIJENJENO]]-OperativniTroškovi[[#This Row],[STVARNO]]","v":{"v":0,"d":"0.00"}}]
[null,"Popusti za gotovinu",{"v":1500,"d":"1,500.00"},{"v":2175,"d":"2,175.00"},{"$f":"OperativniTroškovi[[#This Row],[STVARNO]]+(10^-6)*ROW(OperativniTroškovi[[#This Row],[STVARNO]])","v":{"v":2175.000007,"d":"2,175.00"}},{"$f":"OperativniTroškovi[[#This Row],[PROCIJENJENO]]-OperativniTroškovi[[#This Row],[STVARNO]]","v":{"v":-675,"d":"-675.00 "}}]
[null,"Troškovi isporuke",{"v":2000,"d":"2,000.00"},{"v":1500,"d":"1,500.00"},{"$f":"OperativniTroškovi[[#This Row],[STVARNO]]+(10^-6)*ROW(OperativniTroškovi[[#This Row],[STVARNO]])","v":{"v":1500.000008,"d":"1,500.00"}},{"$f":"OperativniTroškovi[[#This Row],[PROCIJENJENO]]-OperativniTroškovi[[#This Row],[STVARNO]]","v":{"v":500,"d":"500.00"}}]
[null,"Amortizacija",{"v":1000,"d":"1,000.00"},{"v":1000,"d":"1,000.00"},{"$f":"OperativniTroškovi[[#This Row],[STVARNO]]+(10^-6)*ROW(OperativniTroškovi[[#This Row],[STVARNO]])","v":{"v":1000.000009,"d":"1,000.00"}},{"$f":"OperativniTroškovi[[#This Row],[PROCIJENJENO]]-OperativniTroškovi[[#This Row],[STVARNO]]","v":{"v":0,"d":"0.00"}}]
[null,"Davanja i pretplate",{"v":500,"d":"500.00"},{"v":525,"d":"525.00"},{"$f":"OperativniTroškovi[[#This Row],[STVARNO]]+(10^-6)*ROW(OperativniTroškovi[[#This Row],[STVARNO]])","v":{"v":525.00001,"d":"525.00"}},{"$f":"OperativniTroškovi[[#This Row],[PROCIJENJENO]]-OperativniTroškovi[[#This Row],[STVARNO]]","v":{"v":-25,"d":"-25.00 "}}]
[null,"Osiguranje",{"v":1300,"d":"1,300.00"},{"v":1275,"d":"1,275.00"},{"$f":"OperativniTroškovi[[#This Row],[STVARNO]]+(10^-6)*ROW(OperativniTroškovi[[#This Row],[STVARNO]])","v":{"v":1275.000011,"d":"1,275.00"}},{"$f":"OperativniTroškovi[[#This Row],[PROCIJENJENO]]-OperativniTroškovi[[#This Row],[STVARNO]]","v":{"v":25,"d":"25.00"}}]
[null,"Kamata",{"v":2000,"d":"2,000.00"},{"v":2200,"d":"2,200.00"},{"$f":"OperativniTroškovi[[#This Row],[STVARNO]]+(10^-6)*ROW(OperativniTroškovi[[#This Row],[STVARNO]])","v":{"v":2200.000012,"d":"2,200.00"}},{"$f":"OperativniTroškovi[[#This Row],[PROCIJENJENO]]-OperativniTroškovi[[#This Row],[STVARNO]]","v":{"v":-200,"d":"-200.00 "}}]
[null,"Pravni troškovi i revizija",{"v":1000,"d":"1,000.00"},{"v":800,"d":"800.00"},{"$f":"OperativniTroškovi[[#This Row],[STVARNO]]+(10^-6)*ROW(OperativniTroškovi[[#This Row],[STVARNO]])","v":{"v":800.000013,"d":"800.00"}},{"$f":"OperativniTroškovi[[#This Row],[PROCIJENJENO]]-OperativniTroškovi[[#This Row],[STVARNO]]","v":{"v":200,"d":"200.00"}}]
[null,"Održavanje i popravci",{"v":4500,"d":"4,500.00"},{"v":4600,"d":"4,600.00"},{"$f":"OperativniTroškovi[[#This Row],[STVARNO]]+(10^-6)*ROW(OperativniTroškovi[[#This Row],[STVARNO]])","v":{"v":4600.000014,"d":"4,600.00"}},{"$f":"OperativniTroškovi[[#This Row],[PROCIJENJENO]]-OperativniTroškovi[[#This Row],[STVARNO]]","v":{"v":-100,"d":"-100.00 "}}]
[null,"Uredski pribor",{"v":800,"d":"800.00"},{"v":750,"d":"750.00"},{"$f":"OperativniTroškovi[[#This Row],[STVARNO]]+(10^-6)*ROW(OperativniTroškovi[[#This Row],[STVARNO]])","v":{"v":750.000015,"d":"750.00"}},{"$f":"OperativniTroškovi[[#This Row],[PROCIJENJENO]]-OperativniTroškovi[[#This Row],[STVARNO]]","v":{"v":50,"d":"50.00"}}]
[null,"Poštarina",{"v":400,"d":"400.00"},{"v":350,"d":"350.00"},{"$f":"OperativniTroškovi[[#This Row],[STVARNO]]+(10^-6)*ROW(OperativniTroškovi[[#This Row],[STVARNO]])","v":{"v":350.000016,"d":"350.00"}},{"$f":"OperativniTroškovi[[#This Row],[PROCIJENJENO]]-OperativniTroškovi[[#This Row],[STVARNO]]","v":{"v":50,"d":"50.00"}}]
[null,"Najam ili kredit",{"v":4100,"d":"4,100.00"},{"v":4500,"d":"4,500.00"},{"$f":"OperativniTroškovi[[#This Row],[STVARNO]]+(10^-6)*ROW(OperativniTroškovi[[#This Row],[STVARNO]])","v":{"v":4500.000017,"d":"4,500.00"}},{"$f":"OperativniTroškovi[[#This Row],[PROCIJENJENO]]-OperativniTroškovi[[#This Row],[STVARNO]]","v":{"v":-400,"d":"-400.00 "}}]
[null,"Prodajni troškovi",{"v":350,"d":"350.00"},{"v":400,"d":"400.00"},{"$f":"OperativniTroškovi[[#This Row],[STVARNO]]+(10^-6)*ROW(OperativniTroškovi[[#This Row],[STVARNO]])","v":{"v":400.000018,"d":"400.00"}},{"$f":"OperativniTroškovi[[#This Row],[PROCIJENJENO]]-OperativniTroškovi[[#This Row],[STVARNO]]","v":{"v":-50,"d":"-50.00 "}}]
[null,"Isporuka i skladištenje",{"v":900,"d":"900.00"},{"v":840,"d":"840.00"},{"$f":"OperativniTroškovi[[#This Row],[STVARNO]]+(10^-6)*ROW(OperativniTroškovi[[#This Row],[STVARNO]])","v":{"v":840.000019,"d":"840.00"}},{"$f":"OperativniTroškovi[[#This Row],[PROCIJENJENO]]-OperativniTroškovi[[#This Row],[STVARNO]]","v":{"v":60,"d":"60.00"}}]
[null,"Potrošni materijal",{"v":5000,"d":"5,000.00"},{"v":4500,"d":"4,500.00"},{"$f":"OperativniTroškovi[[#This Row],[STVARNO]]+(10^-6)*ROW(OperativniTroškovi[[#This Row],[STVARNO]])","v":{"v":4500.00002,"d":"4,500.00"}},{"$f":"OperativniTroškovi[[#This Row],[PROCIJENJENO]]-OperativniTroškovi[[#This Row],[STVARNO]]","v":{"v":500,"d":"500.00"}}]
[null,"Porezi",{"v":3000,"d":"3,000.00"},{"v":3200,"d":"3,200.00"},{"$f":"OperativniTroškovi[[#This Row],[STVARNO]]+(10^-6)*ROW(OperativniTroškovi[[#This Row],[STVARNO]])","v":{"v":3200.000021,"d":"3,200.00"}},{"$f":"OperativniTroškovi[[#This Row],[PROCIJENJENO]]-OperativniTroškovi[[#This Row],[STVARNO]]","v":{"v":-200,"d":"-200.00 "}}]
[null,"Telefon",{"v":250,"d":"250.00"},{"v":280,"d":"280.00"},{"$f":"OperativniTroškovi[[#This Row],[STVARNO]]+(10^-6)*ROW(OperativniTroškovi[[#This Row],[STVARNO]])","v":{"v":280.000022,"d":"280.00"}},{"$f":"OperativniTroškovi[[#This Row],[PROCIJENJENO]]-OperativniTroškovi[[#This Row],[STVARNO]]","v":{"v":-30,"d":"-30.00 "}}]
[null,"Režije",{"v":1400,"d":"1,400.00"},{"v":1385,"d":"1,385.00"},{"$f":"OperativniTroškovi[[#This Row],[STVARNO]]+(10^-6)*ROW(OperativniTroškovi[[#This Row],[STVARNO]])","v":{"v":1385.000023,"d":"1,385.00"}},{"$f":"OperativniTroškovi[[#This Row],[PROCIJENJENO]]-OperativniTroškovi[[#This Row],[STVARNO]]","v":{"v":15,"d":"15.00"}}]
[null,"Ostalo",{"v":1000,"d":"1,000.00"},{"v":750,"d":"750.00"},{"$f":"OperativniTroškovi[[#This Row],[STVARNO]]+(10^-6)*ROW(OperativniTroškovi[[#This Row],[STVARNO]])","v":{"v":750.000024,"d":"750.00"}},{"$f":"OperativniTroškovi[[#This Row],[PROCIJENJENO]]-OperativniTroškovi[[#This Row],[STVARNO]]","v":{"v":250,"d":"250.00"}}]
[null,"Ukupni operativni troškovi",{"$f":"SUBTOTAL(109,OperativniTroškovi[PROCIJENJENO])","v":{"v":36000,"d":"36,000.00"}},{"$f":"SUBTOTAL(109,OperativniTroškovi[STVARNO])","v":{"v":35530,"d":"35,530.00"}},null,{"$f":"SUBTOTAL(109,OperativniTroškovi[RAZLIKA])","v":{"v":470,"d":"470.00"}}]